bitfinex-derivatives/quotes_SOLF0:USTF0_20250307
["timestamp","ask_amount","ask_price","bid_price","bid_amount"]
[1741356433972,10.3333,145.05,145.04,6.388e-05]
[1741356434175,28.77963163,145.06,144.94,3.7633]
[1741356434176,6.8981,144.95,144.94,3.7633]
[1741356434586,6.8981,144.95,144.92,4.0845]
[1741356434587,35.56,145.01,144.92,4.0845]
[1741356434879,6.899,144.93,144.92,4.0845]
[1741356435576,6.8995,144.92,144.91,9.31706455]
[1741356436175,6.8995,144.92,144.91,6.455e-05]
[1741356437174,10.3595,144.92,144.91,6.455e-05]
[1741356437781,11.6263003,144.92,144.91,6.455e-05]
[1741356438181,205.6263003,144.92,144.91,6.455e-05]
[1741356438682,206.82797851,144.92,144.91,6.455e-05]
[1741356439485,202.1663003,144.92,144.91,6.455e-05]
[1741356439987,236.4595,144.92,144.91,6.455e-05]
[1741356441392,6.8992,144.93,144.91,6.455e-05]
[1741356441593,0.0471848,144.94,144.91,6.455e-05]
[1741356441991,6.8991,144.93,144.91,6.455e-05]
[1741356442188,0.0471848,144.94,144.91,6.455e-05]
[1741356443690,6.8995,144.92,144.91,6.455e-05]
[1741356443898,0.0471848,144.94,144.91,6.455e-05]
[1741356444194,6.9458848,144.94,144.91,6.455e-05]
[1741356444491,0.0471848,144.94,144.91,6.455e-05]
[1741356444890,6.8993,144.93,144.91,6.455e-05]
[1741356445093,0.0471848,144.94,144.91,6.455e-05]
[1741356445299,6.8995,144.92,144.91,6.455e-05]
[1741356445789,0.0471848,144.94,144.91,6.455e-05]
[1741356446100,6.899,144.93,144.91,6.455e-05]
[1741356446293,0.0471848,144.94,144.91,6.455e-05]
[1741356446492,6.9460848,144.94,144.91,6.455e-05]
[1741356446692,0.0471848,144.94,144.91,6.455e-05]
[1741356446896,6.899,144.93,144.91,6.455e-05]
[1741356447200,0.0471848,144.94,144.91,6.455e-05]
[1741356447500,6.9459848,144.94,144.91,6.455e-05]
[1741356447695,0.0471848,144.94,144.91,6.455e-05]
[1741356447994,0.0471848,144.94,144.93,6.899]
[1741356448295,35.54,144.99,144.91,6.455e-05]
[1741356448491,33.78584272,145.03,144.91,6.455e-05]
[1741356448697,35.54,145.0,144.89,28.73606952]
[1741356448898,64.27606952,145.0,144.9,6.9003]
[1741356449197,64.27606952,145.0,144.89,28.73606952]
[1741356449399,0.05183746,144.96,144.94,0.04846573]
[1741356449896,6.8985,144.95,144.94,0.04846573]
[1741356451096,6.8985,144.95,144.94,6.573e-05]
[1741356451899,42.4185,144.95,144.94,6.573e-05]
[1741356452197,35.52,144.95,144.84,207.02]
[1741356452498,28.73606952,144.94,144.84,207.02]
[1741356452698,35.52,144.95,144.84,207.02]
[1741356452899,28.73606952,144.94,144.84,207.02]
[1741356453296,6.9028,144.85,144.84,3.9975]
[1741356454199,0.05018674,144.86,144.84,3.9975]
[1741356455301,0.05018674,144.86,144.85,6.9028]
[1741356455702,35.5,144.92,144.84,3.9975]
[1741356456900,0.04982415,144.89,144.88,6.9011]
[1741356458004,0.04982415,144.89,144.87,0.04410831]
[1741356459603,6.9014,144.88,144.87,0.04410831]
[1741356460303,0.04982415,144.89,144.87,0.04410831]
[1741356460703,6.9014,144.88,144.87,0.04410831]
[1741356460906,0.04982415,144.89,144.87,0.04410831]
[1741356461498,6.95092415,144.89,144.87,0.04410831]
[1741356462804,35.5,144.95,144.87,0.04410831]
[1741356463303,6.9003,144.91,144.87,6.94560831]
[1741356463503,194.0,144.96,144.87,0.04410831]
[1741356463705,35.48,144.96,144.87,0.04410831]
[1741356464008,0.04372372,144.93,144.9,0.05277803]
[1741356464396,35.48,144.97,144.9,0.05017507]
[1741356464600,0.04722062,144.93,144.91,6.8996]
[1741356464800,0.04722062,144.93,144.91,3.8091]
[1741356465002,35.48,145.0,144.91,3.8091]
[1741356465301,35.48,145.0,144.92,28.73606952]
[1741356465506,6.8974,144.97,144.93,6.8988]
[1741356465707,35.48,145.0,144.93,6.8988]
[1741356465900,201.6203,145.03,144.93,6.8988]
[1741356466101,6.8974,144.97,144.95,0.05110347]
[1741356466303,0.05257247,144.98,144.95,0.05110347]
[1741356467103,35.46,145.05,144.95,0.05110347]
[1741356467299,35.46,145.05,144.93,62.0]
[1741356467605,35.46,145.05,144.95,28.73606952]
[1741356467903,35.46,145.05,144.95,64.19606952]
[1741356468107,35.46,145.05,144.97,6.8969]
[1741356468306,0.05295802,145.01,144.99,0.05205442]
[1741356468713,6.8957,145.0,144.99,0.05205442]
[1741356469313,6.8957,145.0,144.99,5.442e-05]
[1741356469515,42.3557,145.0,144.99,5.442e-05]
[1741356471106,46.3129,145.0,144.99,5.442e-05]
[1741356471506,43.5264,145.0,144.88,4.1126]
[1741356471708,28.73606952,144.98,144.88,4.1126]
[1741356472306,28.73606952,144.98,144.88,7.9496]
[1741356472708,6.9009,144.89,144.88,7.9496]
[1741356472904,0.04946359,144.94,144.88,7.9496]
[1741356473106,6.899,144.93,144.92,0.05007908]
[1741356477723,6.899,144.93,144.92,7.908e-05]
[1741356484021,0.0478126,144.94,144.92,7.908e-05]
[1741356484619,6.8965,144.99,144.92,3.44007908]
[1741356484921,35.4,145.03,144.91,28.73606952]
[1741356485121,6.8975,144.97,144.91,28.73606952]
[1741356485523,35.4,145.03,144.91,28.73606952]
[1741356485720,35.4,145.03,144.93,0.05162616]
[1741356485924,35.4,145.03,144.91,28.73606952]
[1741356486121,6.8966,144.98,144.97,0.04363413]
[1741356486318,0.04924869,144.99,144.97,0.04363413]
[1741356487426,0.04924869,144.99,144.98,6.8966]
[1741356487825,6.8936,145.05,145.01,6.8949]
[1741356488019,6.8936,145.05,144.98,38.82]
[1741356488020,3.9241,145.08,144.99,4.0052]
[1741356488422,6.8943,145.03,144.99,10.9011]
[1741356488820,3.9241,145.08,144.99,10.9011]
[1741356489022,0.04952607,145.02,145.0,0.04654414]
[1741356489526,6.8953,145.01,145.0,0.04654414]
[1741356490726,6.8953,145.01,145.0,4.414e-05]
[1741356492732,6.94462607,145.02,145.0,4.414e-05]
[1741356492928,0.04952607,145.02,145.0,4.414e-05]
[1741356494331,6.8952,145.01,145.0,4.414e-05]
[1741356497934,6.94472607,145.02,145.0,4.414e-05]
[1741356498436,0.04952607,145.02,145.0,4.414e-05]
[1741356498636,6.8952,145.01,145.0,4.414e-05]
[1741356500729,6.94452607,145.02,145.0,4.414e-05]
[1741356500933,0.04952607,145.02,145.0,4.414e-05]
[1741356501327,6.94452607,145.02,145.0,4.414e-05]
[1741356501631,0.04952607,145.02,145.0,4.414e-05]
[1741356502130,6.893,145.06,145.03,6.894]
[1741356503235,6.93732536,145.06,145.03,0.0458379]
[1741356503629,0.04432536,145.06,145.03,6.9400379]
[1741356503829,0.04432536,145.06,145.03,0.0458379]
[1741356504938,6.8936,145.05,145.03,0.0458379]
[1741356505231,0.04432536,145.06,145.03,0.0458379]
[1741356506030,6.8938,145.04,145.03,0.0458379]
[1741356509139,6.8938,145.04,145.03,3.79e-05]
[1741356512532,7.2803,145.04,144.88,206.9]
[1741356512739,28.73606952,145.01,144.89,7.7578]
[1741356512940,35.26,145.0,144.9,6.9001]
[1741356513136,6.898,144.96,144.89,7.7578]
[1741356513446,35.26,145.0,144.91,6.8997]
[1741356513645,6.8988,144.94,144.89,7.7578]
[1741356513839,0.04920147,144.94,144.89,7.7578]
[1741356514147,0.04920147,144.94,144.91,0.05213524]
[1741356514749,6.8995,144.92,144.91,0.05213524]
[1741356518361,6.8991,144.93,144.91,0.05213524]
[1741356518752,0.04920147,144.94,144.91,0.05213524]
[1741356518954,6.8995,144.92,144.91,0.05213524]
[1741356521561,0.04920147,144.94,144.91,0.05213524]
[1741356521963,0.04920147,144.94,144.91,6.95183524]
[1741356522363,0.04920147,144.94,144.93,6.899]
[1741356522564,0.04920147,144.94,144.91,0.05213524]
[1741356522971,0.04920147,144.94,144.93,6.899]
[1741356523265,6.8969,144.98,144.91,7.91333524]
[1741356523464,229.24,145.02,144.91,7.91333524]
[1741356523659,35.24,145.02,144.91,7.8612]
[1741356523853,35.24,145.02,144.91,3.8468]
[1741356524263,0.04866931,144.98,144.95,0.04908487]
[1741356524665,6.8976,144.96,144.95,0.04908487]
[1741356527259,6.8976,144.96,144.95,8.487e-05]
[1741356527966,35.63366952,144.96,144.95,8.487e-05]
[1741356528171,47.74896952,144.96,144.95,8.487e-05]
[1741356528969,51.18896952,144.96,144.95,8.487e-05]
[1741356529366,73.17539608,144.96,144.95,8.487e-05]
[1741356529571,252.55779608,144.96,144.8,42.17993787]
[1741356529869,28.73606952,144.92,144.82,6.9039]
[1741356530070,35.2,144.91,144.8,42.17993787]
[1741356530563,0.05067041,144.87,144.84,0.04351898]
[1741356530966,0.05067041,144.87,144.84,6.94651898]
[1741356531166,0.05067041,144.87,144.84,0.04351898]
[1741356531969,6.95287041,144.87,144.84,0.04351898]
[1741356532174,0.05067041,144.87,144.84,0.04351898]
[1741356533567,6.95257041,144.87,144.84,0.04351898]
[1741356534371,0.05067041,144.87,144.84,0.04351898]
[1741356535175,0.05067041,144.87,144.84,6.94641898]
[1741356535376,0.05067041,144.87,144.84,62.04351898]
[1741356535570,0.05067041,144.87,144.84,0.04351898]
[1741356535976,6.9028,144.86,144.84,0.04351898]
[1741356536174,0.05067041,144.87,144.84,0.04351898]
[1741356536877,6.9028,144.85,144.84,0.04351898]
[1741356540776,6.9028,144.85,144.84,1.898e-05]
[1741356542074,6.9026,144.86,144.84,1.898e-05]
[1741356542278,0.05067041,144.87,144.84,1.898e-05]
[1741356542779,6.9028,144.85,144.84,1.898e-05]
[1741356543875,42.0628,144.85,144.75,4.0683]
[1741356544180,18.01687353,144.83,144.75,4.0683]
[1741356544374,3.3291,144.82,144.75,4.0683]
[1741356544679,53.17687353,144.81,144.73,3.7689]
[1741356544877,53.17687353,144.81,144.7,9.33406835]
[1741356544878,18.01687353,144.79,144.7,13.40236835]
[1741356545078,35.16,144.81,144.7,13.40236835]
[1741356545079,6.9095,144.71,144.7,9.33406835]
[1741356545780,0.04571085,144.72,144.7,9.33406835]
[1741356545976,38.6883,144.8,144.71,18.01687353]
[1741356546382,18.01687353,144.77,144.7,9.33406835]
[1741356546680,28.87875299,144.79,144.7,9.33406835]
[1741356547278,6.9081,144.74,144.73,0.05050189]
[1741356547580,0.0445843,144.76,144.66,3.5512]
[1741356547581,35.16,144.75,144.66,3.5512]
[1741356547778,38.7502,144.75,144.66,3.5512]
[1741356548677,0.05049746,144.72,144.69,0.04583796]
[1741356548877,0.05049746,144.72,144.61,6.6975]
[1741356548878,35.16,144.71,144.61,6.6975]
[1741356549383,6.9114,144.68,144.63,6.9129]
[1741356549683,35.16,144.71,144.61,6.6975]
[1741356549978,0.04650861,144.67,144.65,0.04414373]
[1741356550583,6.9119,144.66,144.65,0.04414373]
[1741356551078,35.20650861,144.67,144.57,67.40325299]
[1741356551383,35.16,144.67,144.57,70.93195299]
[1741356551586,35.16,144.67,144.57,35.77195299]
[1741356551877,6.9144,144.61,144.57,13.8092]
[1741356552083,64.03875299,144.67,144.57,6.8932]
[1741356552284,0.04883851,144.6,144.58,0.04940741]
[1741356552580,0.05130855,144.6,144.57,6.8932]
[1741356552776,0.05130855,144.6,144.58,0.04719752]
[1741356553685,6.9152,144.59,144.58,9.752e-05]
[1741356553875,42.0752,144.59,144.58,9.752e-05]
[1741356554079,6.9191,144.51,144.5,39.23809043]
[1741356554294,6.9191,144.51,144.5,24.15461184]
[1741356554490,28.87875299,144.53,144.49,44.94318265]
[1741356554675,28.87875299,144.55,144.47,121.16673163]
[1741356554676,28.87875299,144.5,144.47,121.16673163]
[1741356555181,28.87875299,144.5,144.43,2.802e-05]
[1741356555483,6.9226,144.44,144.43,2.802e-05]
[1741356555682,35.16,144.44,144.42,41.00795225]
[1741356555885,6.9229,144.43,144.42,41.05480879]
[1741356556286,35.80165299,144.43,144.42,36.10040879]
[1741356556682,28.87875299,144.43,144.42,36.10040879]
[1741356556881,35.20716064,144.44,144.42,36.10040879]
[1741356557488,28.87875299,144.43,144.42,36.10040879]
[1741356557880,35.20716064,144.44,144.42,36.10040879]
[1741356558777,0.04716064,144.44,144.42,36.10040879]
[1741356559992,0.04716064,144.44,144.42,0.04685654]
[1741356560493,0.04716064,144.44,144.35,3.2726]
[1741356560494,35.18,144.43,144.35,3.2726]
[1741356560684,28.87875299,144.42,144.35,3.2726]
[1741356561392,28.87875299,144.45,144.35,3.2726]
[1741356561693,0.04906601,144.4,144.37,0.05147958]
[1741356561995,6.9223,144.45,144.38,6.9249]
[1741356562194,35.18,144.46,144.35,3.2726]
[1741356563295,0.04856736,144.42,144.39,0.04740767]
[1741356563498,35.18,144.41,144.39,0.04740767]
[1741356564290,0.04856736,144.42,144.39,0.04740767]
[1741356564899,35.18,144.46,144.39,0.04740767]
[1741356565997,6.9229,144.43,144.39,0.04740767]
[1741356566302,35.18,144.42,144.39,0.04740767]
[1741356566902,0.05191839,144.44,144.39,0.04740767]
[1741356567603,0.05191839,144.44,144.42,6.9233]
[1741356567794,0.05191839,144.44,144.39,0.04740767]
[1741356568603,6.9243,144.41,144.39,0.04740767]
[1741356568801,35.18,144.41,144.39,0.04740767]
[1741356569701,35.23191839,144.44,144.39,0.04740767]
[1741356570800,0.05191839,144.44,144.39,0.04740767]
[1741356571598,35.18,144.52,144.39,28.92616066]
[1741356571801,6.9194,144.51,144.42,28.87875299]
[1741356572002,207.7,144.57,144.43,41.8712]
[1741356572202,64.05875299,144.55,144.43,41.8712]
[1741356572402,6.9189,144.52,144.47,6.9208]
[1741356572602,35.18,144.55,144.45,28.87875299]
[1741356572900,0.0465923,144.51,144.48,6.96488594]
[1741356573219,0.0465923,144.51,144.48,0.04458594]
[1741356573405,35.18,144.55,144.48,0.04458594]
[1741356573612,194.0,144.59,144.48,0.04458594]
[1741356573613,6.9168,144.56,144.51,6.9188]
[1741356573808,35.16,144.58,144.51,6.9188]
[1741356574004,6.9184,144.53,144.47,35.16]
[1741356574307,35.16,144.58,144.47,35.16]
[1741356574806,0.04388877,144.54,144.51,0.05000769]
[1741356576105,6.9186,144.52,144.51,0.05000769]
[1741356576811,6.96158877,144.54,144.51,0.05000769]
[1741356577007,0.04388877,144.54,144.51,0.05000769]
[1741356579803,0.04388877,144.54,144.51,6.96900769]
[1741356580007,0.04388877,144.54,144.51,0.05000769]
[1741356580311,0.04388877,144.54,144.52,6.9186]
[1741356580616,0.04388877,144.54,144.51,0.05000769]
[1741356581610,0.04388877,144.54,144.52,6.9182]
[1741356581810,0.04388877,144.54,144.51,0.05000769]
[1741356582209,6.9184,144.53,144.51,0.05000769]
[1741356582409,0.04388877,144.54,144.51,0.05000769]
[1741356582709,6.9184,144.53,144.51,0.05000769]
[1741356582914,0.04388877,144.54,144.51,0.05000769]
[1741356583803,6.9184,144.53,144.51,0.05000769]
[1741356584711,6.9186,144.52,144.51,0.05000769]
[1741356585609,6.9186,144.52,144.51,7.69e-06]
[1741356585914,18.02750304,144.52,144.51,7.69e-06]
[1741356587710,6.9215,144.46,144.43,6.6912]
[1741356587911,5.66413744,144.52,144.43,6.6912]
[1741356588213,5.44957316,144.51,144.43,6.6912]
[1741356588423,5.44957316,144.5,144.43,6.6912]
[1741356588623,40.54957316,144.49,144.43,6.6912]
[1741356588825,11.16951143,144.48,144.45,0.04779976]
[1741356589027,5.71710176,144.48,144.45,0.04779976]
[1741356589623,5.66413744,144.47,144.45,0.04779976]
[1741356590025,5.66413744,144.47,144.45,6.96939976]
[1741356590229,0.05296432,144.48,144.45,0.04779976]
[1741356590729,0.05296432,144.48,144.45,6.96949976]
[1741356590929,0.05296432,144.48,144.45,0.04779976]
[1741356591229,6.9212,144.47,144.45,0.04779976]
[1741356591529,5.67496724,144.47,144.45,0.04779976]
[1741356592029,5.67496724,144.46,144.45,0.04779976]
[1741356592222,12.59646724,144.46,144.45,0.04779976]
[1741356593030,18.05564608,144.46,144.45,0.04779976]
[1741356593218,12.59646724,144.46,144.45,0.04779976]
[1741356593526,18.05601054,144.46,144.45,0.04779976]
[1741356593720,11.13451054,144.46,144.39,3.5768]
[1741356593926,11.13451054,144.46,144.36,35.1]
[1741356593927,5.4595433,144.45,144.36,35.1]
[1741356594125,34.33829629,144.44,144.35,6.7976]
[1741356594326,40.5595433,144.43,144.35,6.7976]
[1741356594527,5.4595433,144.42,144.35,6.7976]
[1741356594723,35.1,144.43,144.35,6.7976]
[1741356594932,0.04528248,144.4,144.37,0.04750764]
[1741356595237,5.67496724,144.39,144.37,0.04750764]
[1741356595534,6.9253,144.38,144.37,0.04750764]
[1741356595833,12.60026724,144.38,144.37,0.04750764]
[1741356596033,5.67496724,144.38,144.37,0.04750764]
[1741356596733,12.60026724,144.38,144.37,0.04750764]
[1741356596934,5.67496724,144.38,144.37,0.04750764]
[1741356597938,0.04528248,144.4,144.37,0.04750764]
[1741356598538,0.04528248,144.4,144.38,6.9249]
[1741356599324,0.04528248,144.4,144.37,0.04750764]
[1741356599533,28.57376617,144.44,144.37,64.00626063]
[1741356599737,28.57376617,144.44,144.38,3.3731]
[1741356599932,35.49646617,144.44,144.4,6.924]
[1741356600235,28.57376617,144.44,144.38,3.3731]
[1741356600741,0.05269792,144.42,144.4,0.05127427]
[1741356601940,6.9238,144.41,144.4,0.05127427]
[1741356602344,5.45454068,144.41,144.34,3.3731]
[1741356602639,3.3491,144.42,144.34,10.3002]
[1741356602841,5.45221158,144.41,144.34,3.3731]
[1741356603040,34.33103655,144.4,144.31,6.9284]
[1741356603244,40.53228356,144.39,144.28,10.0811]
[1741356603531,0.05025808,144.37,144.34,0.05002575]
[1741356603739,6.9267,144.35,144.34,0.05002575]
[1741356604437,6.9267,144.35,144.34,2.575e-05]
[1741356604937,6.9264,144.36,144.34,2.575e-05]
[1741356605144,0.05025808,144.37,144.34,2.575e-05]
[1741356605633,6.9266,144.36,144.34,2.575e-05]
[1741356605839,0.05025808,144.37,144.34,2.575e-05]
[1741356607436,6.9267,144.35,144.34,2.575e-05]
[1741356608142,41.9867,144.35,144.34,2.575e-05]
[1741356608541,70.86545299,144.35,144.34,2.575e-05]
[1741356608735,70.86545299,144.35,144.25,35.06]
[1741356608736,6.93,144.29,144.25,35.06]
[1741356609046,3.522,144.34,144.22,38.2653]
[1741356609236,6.9289,144.31,144.23,28.87875299]
[1741356609545,3.522,144.34,144.23,28.87875299]
[1741356609732,6.9294,144.3,144.26,6.9306]
[1741356609937,0.04360021,144.3,144.27,0.04651559]
[1741356610337,0.04360021,144.3,144.29,6.9296]
[1741356610537,0.04360021,144.3,144.27,0.04651559]
[1741356610738,0.04360021,144.3,144.28,6.9298]
[1741356610934,0.04360021,144.3,144.27,0.04651559]
[1741356611143,39.7793228,144.39,144.27,0.04651559]
[1741356611341,38.573,144.39,144.32,6.9281]
[1741356611547,38.573,144.39,144.26,63.93875299]
[1741356611739,38.573,144.39,144.35,6.9264]
[1741356612047,12.51095835,144.38,144.3,35.06]
[1741356612448,0.04961528,144.38,144.36,0.04413311]
[1741356612746,0.04961528,144.38,144.36,0.04396008]
[1741356612943,0.04961528,144.38,144.36,6.96996008]
[1741356613247,0.04961528,144.38,144.36,0.04396008]
[1741356614046,0.04961528,144.38,144.37,6.9258]
[1741356614949,0.04961528,144.38,144.36,6.97006008]
[1741356615148,0.04961528,144.38,144.36,0.04396008]
[1741356615645,0.04961528,144.38,144.36,6.96976008]
[1741356615947,0.04961528,144.38,144.36,0.04396008]
[1741356616350,6.9258,144.37,144.36,0.04396008]
[1741356618548,17.99651356,144.37,144.36,0.04396008]
[1741356618946,17.99651356,144.37,144.36,6.008e-05]
[1741356619451,17.99715155,144.37,144.36,6.008e-05]
[1741356619652,6.9285,144.32,144.29,3.4455]
[1741356620246,35.04,144.36,144.29,3.4455]
[1741356620445,5.48108354,144.35,144.29,3.4455]
[1741356620747,0.04906645,144.33,144.31,0.05138966]
[1741356621048,6.97676645,144.33,144.31,0.05138966]
[1741356621262,0.04906645,144.33,144.31,0.05138966]
[1741356621451,12.40944673,144.32,144.31,0.05138966]
[1741356621657,18.04044081,144.32,144.31,0.05138966]
[1741356622156,11.11224081,144.32,144.31,0.05138966]
[1741356622656,5.63099408,144.32,144.31,0.05138966]
[1741356623155,38.476,144.4,144.31,0.05138966]
[1741356623355,5.48044406,144.39,144.3,35.02]
[1741356623548,5.48044406,144.38,144.3,35.02]
[1741356623856,5.48044406,144.37,144.3,35.02]
[1741356624156,5.48044406,144.36,144.31,6.9284]
[1741356624357,5.52492167,144.35,144.32,0.05024296]
[1741356624655,0.04447761,144.35,144.32,0.05024296]
[1741356624847,5.48516751,144.34,144.32,0.05024296]
[1741356625046,6.9277,144.33,144.32,0.05024296]
[1741356625255,12.41316819,144.33,144.32,0.05024296]
[1741356626049,12.41316819,144.33,144.32,4.296e-05]
[1741356627144,5.48546819,144.33,144.32,4.296e-05]
[1741356627749,12.41316819,144.33,144.32,4.296e-05]
[1741356628059,76.31192118,144.33,144.32,4.296e-05]
[1741356628355,72.84422118,144.33,144.21,6.5688]
[1741356628555,5.48546819,144.32,144.21,10.1117]
[1741356628756,6.9299,144.29,144.21,10.1117]
[1741356628957,5.48546819,144.28,144.21,10.1117]
[1741356629158,5.49887208,144.27,144.23,6.9324]
[1741356629360,5.49887208,144.26,144.21,10.1117]
[1741356629658,67.12855299,144.33,144.23,0.0523963]
[1741356629855,0.04412389,144.25,144.23,0.0523963]
[1741356630157,6.9293,144.3,144.27,0.05274898]
[1741356630355,67.12855299,144.33,144.24,6.9317]
[1741356630356,0.04494811,144.25,144.24,6.9317]
[1741356630555,63.57205409,144.33,144.27,0.04857735]
[1741356630858,5.50345707,144.32,144.23,97.0]
[1741356631057,5.50345707,144.31,144.23,35.0]
[1741356631255,5.50345707,144.3,144.29,6.9296]
[1741356631457,5.50345707,144.3,144.23,35.0]
[1741356631754,0.04645417,144.31,144.28,0.04927111]
[1741356632059,28.55205409,144.33,144.31,6.9285]
[1741356632259,5.50452083,144.32,144.31,6.9285]
[1741356632558,5.50452083,144.32,144.31,6.97402387]
[1741356632751,0.0454218,144.33,144.32,6.9282]
[1741356632952,5.55246538,144.33,144.31,0.04552387]
[1741356633152,5.50704358,144.32,144.31,0.04552387]
[1741356633849,5.50968152,144.32,144.31,0.04552387]
[1741356635657,11.1073216,144.32,144.31,0.04552387]
[1741356636263,0.25584008,144.32,144.31,0.04552387]
[1741356636557,0.25584008,144.32,144.31,6.97412387]
[1741356636762,0.0454218,144.33,144.31,0.04552387]
[1741356637463,0.0454218,144.33,144.32,6.9282]
[1741356637760,5.57111462,144.33,144.32,6.9282]
[1741356638462,0.23071462,144.33,144.32,6.9282]
[1741356638667,28.55205409,144.37,144.31,35.02552387]
[1741356639162,28.55205409,144.37,144.34,6.9269]
[1741356639363,28.55205409,144.37,144.31,34.98]
[1741356639563,0.05274491,144.35,144.33,0.04999941]
[1741356639864,0.05274491,144.35,144.33,6.97729941]
[1741356640166,0.05274491,144.35,144.33,0.04999941]
[1741356640867,6.9272,144.34,144.33,0.04999941]
[1741356642758,3.46,144.34,144.23,34.96]
[1741356642962,63.83875299,144.33,144.23,34.96]
[1741356643267,6.9295,144.3,144.26,6.9308]
[1741356643567,63.83875299,144.33,144.23,34.96]
[1741356643864,6.9303,144.28,144.27,0.04577877]
[1741356646564,6.97734134,144.29,144.27,0.04577877]
[1741356647165,0.04754134,144.29,144.27,0.04577877]
[1741356647465,6.9301,144.28,144.27,0.04577877]
[1741356649166,25.0944529,144.28,144.27,0.04577877]
[1741356649560,21.6243529,144.28,144.19,6.9162]
[1741356649761,18.1643529,144.24,144.19,3.5268]
[1741356650169,6.9345,144.19,144.15,10.257]
[1741356650361,18.1643529,144.22,144.14,3.2991]
[1741356650562,29.10151721,144.22,144.14,3.2991]
[1741356650766,0.05174795,144.19,144.17,0.04908655]
[1741356652373,0.05174795,144.19,144.17,6.98428655]
[1741356652765,0.05174795,144.19,144.17,0.04908655]
[1741356653264,6.98624795,144.19,144.17,0.04908655]
[1741356653466,0.05174795,144.19,144.17,0.04908655]
[1741356654972,0.05174795,144.19,144.17,6.98428655]
[1741356655169,0.05174795,144.19,144.17,0.04908655]
[1741356655376,0.05174795,144.19,144.12,3.4598]
[1741356655575,29.10151721,144.18,144.12,3.4598]
[1741356655777,29.10151721,144.18,144.11,6.9382]
[1741356656073,29.10151721,144.18,144.08,64.04151721]
[1741356656074,6.9352,144.18,144.08,64.04151721]
[1741356656270,38.407,144.2,144.08,64.04151721]
[1741356656474,34.94,144.2,144.08,64.04151721]
[1741356656674,0.04602117,144.16,144.14,6.98436843]
[1741356657072,0.04602117,144.16,144.14,0.04796843]
[1741356657672,6.9363,144.15,144.14,0.04796843]
[1741356658074,0.04602117,144.16,144.14,0.04796843]
[1741356658276,0.04602117,144.16,144.15,6.9363]
[1741356658680,0.04602117,144.16,144.14,0.04796843]
[1741356659773,0.04602117,144.16,144.15,6.9363]
[1741356659977,0.04602117,144.16,144.14,0.04796843]
[1741356660670,0.04602117,144.16,144.15,6.9363]
[1741356660870,34.94,144.23,144.14,0.04796843]
[1741356661071,3.206,144.24,144.15,34.94]
[1741356661274,47.8975695,144.25,144.15,34.94]
[1741356661482,47.8975695,144.25,144.15,243.0]
[1741356661880,47.8975695,144.25,144.22,6.9327]
[1741356662279,47.94891419,144.25,144.19,34.94]
[1741356662583,47.94891419,144.25,144.22,0.0504854]
[1741356662780,104.69086501,144.32,144.23,34.94]
[1741356663476,104.69086501,144.32,144.23,64.04151721]
[1741356664181,104.69086501,144.32,144.31,6.9286]
[1741356664379,0.05282489,144.29,144.28,34.92]
[1741356664582,104.69086501,144.32,144.26,6.9307]
[1741356664784,104.69086501,144.32,144.27,0.0470633]
[1741356664980,0.04943543,144.3,144.27,0.0470633]
[1741356665182,0.04943543,144.3,144.29,6.9296]
[1741356665484,38.261,144.37,144.27,0.0470633]
[1741356665885,38.261,144.37,144.25,64.02151721]
[1741356666182,6.928,144.33,144.27,6.9306]
[1741356666383,38.261,144.37,144.25,64.02151721]
[1741356666581,0.04728458,144.31,144.29,0.04879572]
[1741356666889,6.9291,144.3,144.29,0.04879572]
[1741356667482,0.05097529,144.31,144.29,0.04879572]
[1741356669578,6.97967529,144.31,144.29,0.04879572]
[1741356669779,0.05097529,144.31,144.29,0.04879572]
[1741356671090,0.05097529,144.31,144.3,6.9291]
[1741356671484,0.05097529,144.31,144.29,0.04879572]
[1741356671685,6.9291,144.3,144.29,0.04879572]
[1741356672192,0.05097529,144.31,144.3,6.9291]
[1741356672488,0.05097529,144.31,144.29,0.04879572]
[1741356673997,0.05097529,144.31,144.3,6.9291]
[1741356674188,0.05097529,144.31,144.29,0.04879572]
[1741356674688,0.05097529,144.31,144.29,6.97839572]
[1741356674994,0.05097529,144.31,144.29,0.04879572]
[1741356675188,0.05097529,144.31,144.3,6.9291]
[1741356675694,0.05097529,144.31,144.29,0.04879572]
[1741356677299,6.97997529,144.31,144.29,0.04879572]
[1741356677596,0.05097529,144.31,144.29,0.04879572]
[1741356677794,6.9291,144.3,144.29,0.04879572]
[1741356677996,0.05097529,144.31,144.29,0.04879572]